fUST/lending_fUST_20240122
["ID","MTS","AMOUNT","RATE_DAILY","PERIOD"]
[312390610,1705857040762,-500.0,0.00027899,2]
[312390611,1705857040772,-175741.09390304,0.000279,2]
[312390612,1705857040786,-20104.79941509,0.000279,2]
[312390613,1705857040797,-758.08391562,0.000279,2]
[312390614,1705857040808,-1084.58685493,0.000279,2]
[312390617,1705857041212,-2407.69,0.00027888,3]
[312390618,1705857041222,-27355.29792532,0.000279,2]
[312390619,1705857041267,-3888.95995264,0.000279,2]
[312390691,1705857043122,-2929.54321153,0.000279,2]
[312390693,1705857043134,-26291.53042097,0.000279,2]
[312390694,1705857043176,-551.545,0.000279,2]
[312390783,1705857046167,-500.0,0.00027397,2]
[312390785,1705857046179,-659.3,0.00027397,2]
[312390787,1705857046188,-1035.9,0.00027671,2]
[312390790,1705857046200,-123.4,0.00027671,2]
[312390792,1705857046209,-341.5834619,0.00027899,2]
[312390794,1705857046218,-3126.5591331,0.000279,2]
[312390796,1705857046230,-848.28,0.000279,2]
[312390981,1705858232791,-323.52155902,0.00024052,2]
[312390983,1705858232801,-452.64054461,0.00024052,2]
[312390984,1705858232809,-874.18725797,0.00024052,2]
[312390986,1705858232818,-154.88935421,0.00024053,2]
[312390988,1705858232827,-824.15691166,0.00024054,2]
[312390989,1705858232836,-265.43031538,0.00024055,2]
[312390991,1705858232845,-154.75239617,0.00024056,4]
[312390992,1705858232854,-13717.4313798,0.00024057,2]
[312390994,1705858232864,-250.0,0.00024074,2]
[312390996,1705858232873,-7881.19,0.00025047,3]
[312390997,1705858232883,-36958.2042176,0.00025056,2]
[312390999,1705858232893,-11348.92,0.00025057,3]
[312391001,1705858232903,-9457.43,0.00025057,3]
[312391002,1705858232912,-13618.7,0.00025065,3]
[312391004,1705858232922,-8022.07069703,0.00025067,2]
[312391005,1705858232931,-3660.05483598,0.00025075,2]
[312391007,1705858232940,-690.52950159,0.00025075,2]
[312391009,1705858232949,-156.78271178,0.00025075,2]
[312391010,1705858232958,-19863.4413156,0.00025075,2]
[312391012,1705858232967,-4075.99686451,0.00025075,2]
[312391013,1705858232976,-24900.0,0.00025078,2]
[312391015,1705858232985,-155.61925482,0.000257,2]
[312391017,1705858232994,-531.24920642,0.000258,2]
[312391018,1705858233003,-161.23083254,0.00026284,2]
[312391020,1705858233013,-158.35826955,0.00026284,2]
[312391022,1705858233023,-294.81882163,0.00026284,2]
[312391023,1705858233035,-188.15847668,0.00026284,2]
[312391025,1705858233044,-206.18032623,0.00026284,2]
[312391026,1705858233053,-155.36726663,0.00026284,2]
[312391028,1705858233062,-951.61726101,0.00026284,2]
[312391030,1705858233071,-1253.15755419,0.00026284,2]
[312391031,1705858233081,-158.15092873,0.00026284,2]
[312391033,1705858233090,-2368.82761163,0.00026284,2]
[312391034,1705858233099,-155.12759061,0.00026284,2]
[312391036,1705858233111,-156.88647382,0.00026284,2]
[312391038,1705858233121,-247.50946715,0.00026284,2]
[312391039,1705858233130,-830.80794104,0.00026285,2]
[312391041,1705858233141,-155.61925481,0.0002675,2]
[312391043,1705858233151,-153.0,0.00026849,2]
[312391044,1705858233161,-153.0,0.00026849,2]
[312391046,1705858233170,-199.1433421,0.00026849,2]
[312391048,1705858233180,-199.1433421,0.00026849,2]
[312391049,1705858233190,-516.0147709,0.00027,5]
[312391051,1705858233200,-42172.16718274,0.00027297,2]
[312391186,1705858238392,-99039.68413735,0.00027297,2]
[312391187,1705858238401,-607.84511694,0.00027367,2]
[312391188,1705858238410,-266.37190097,0.00027394,2]
[312391189,1705858238418,-155.57753322,0.00027394,2]
[312391190,1705858238427,-155.02325349,0.00027394,2]
[312391191,1705858238436,-155.09942251,0.00027394,2]
[312391192,1705858238445,-322.56037203,0.00027394,2]
[312391193,1705858238453,-155.0,0.00027394,2]
[312391194,1705858238462,-155.0,0.00027394,2]
[312391195,1705858238472,-155.35603079,0.00027394,2]
[312391196,1705858238480,-663.39156542,0.00027394,2]
[312391197,1705858238489,-668.7715591,0.00027395,2]
[312391199,1705858238498,-298.34322195,0.00027395,2]
[312391201,1705858238507,-161.02504602,0.00027395,2]
[312391203,1705858238516,-154.82965957,0.00027396,2]
[312391206,1705858238524,-500.0,0.00027397,2]
[312391209,1705858238533,-500.0,0.00027397,2]
[312391211,1705858238541,-636.46,0.00027397,2]
[312391213,1705858238550,-500.0,0.00027397,2]
[312391214,1705858238559,-500.0,0.00027397,2]
[312391216,1705858238567,-500.0,0.00027397,2]
[312391218,1705858238576,-500.0,0.00027397,2]
[312391219,1705858238585,-500.0,0.00027397,2]
[312391221,1705858238594,-574.04952877,0.00027397,2]
[312391223,1705858238604,-500.0,0.00027397,2]
[312391226,1705858238613,-500.0,0.00027397,2]
[312391228,1705858238622,-500.0,0.00027397,2]
[312391230,1705858238631,-500.0,0.00027397,2]
[312391233,1705858238641,-303.01578227,0.00027397,2]
[312391235,1705858238650,-713.26,0.00027397,2]
[312391237,1705858238660,-500.0,0.00027397,2]
[312391239,1705858238668,-500.0,0.00027397,2]
[312391241,1705858238678,-500.0,0.00027397,2]
[312391243,1705858238686,-500.0,0.00027397,2]
[312391245,1705858238695,-500.0,0.00027397,2]
[312391248,1705858238704,-500.0,0.00027397,2]
[312391250,1705858238713,-768.54,0.00027397,2]
[312391252,1705858238722,-500.0,0.00027397,2]
[312391254,1705858238731,-500.0,0.00027397,2]
[312391256,1705858238741,-500.0,0.00027397,2]
[312391258,1705858238750,-500.0,0.00027397,2]
[312391260,1705858238760,-501.85237378,0.00027397,2]
[312391262,1705858238769,-500.0,0.00027397,2]
[312391264,1705858238778,-834.55,0.00027397,2]
[312391266,1705858238786,-516.43736873,0.00027397,2]
[312391268,1705858238796,-500.0,0.00027397,2]
[312391270,1705858238804,-500.0,0.00027397,2]
[312391272,1705858238813,-221.03412024,0.00027397,2]
[312391274,1705858238823,-500.0,0.00027397,2]
[312391276,1705858238832,-500.0,0.00027397,2]
[312391278,1705858238841,-500.0,0.00027397,2]
[312391280,1705858238850,-500.0,0.00027397,2]
[312391282,1705858238859,-500.0,0.00027397,2]
[312391284,1705858238868,-6134.31571473,0.00027397,10]
[312391286,1705858238877,-500.0,0.00027397,2]
[312391288,1705858238885,-349.449581,0.00027397,2]
[312391290,1705858238895,-500.0,0.00027397,2]
[312391292,1705858238904,-500.0,0.00027397,2]
[312391294,1705858238915,-500.0,0.00027397,2]
[312391296,1705858238924,-500.0,0.00027397,2]
[312391298,1705858238933,-500.0,0.00027397,2]
[312391300,1705858238941,-500.0,0.00027397,2]
[312391302,1705858238950,-742.55,0.00027397,2]
[312391304,1705858238959,-500.0,0.00027397,2]
[312391306,1705858238968,-500.0,0.00027397,2]
[312391308,1705858238977,-500.0,0.00027397,2]
[312391310,1705858238987,-500.0,0.00027397,2]
[312391312,1705858238996,-1618.09,0.00027397,2]
[312391314,1705858239005,-500.0,0.00027397,2]
[312391316,1705858239014,-501.64392268,0.00027397,2]
[312391318,1705858239023,-500.0,0.00027397,2]
[312391320,1705858239034,-500.0,0.00027397,2]
[312391322,1705858239052,-500.0,0.00027397,2]
[312391323,1705858239061,-2015.92,0.00027397,2]
[312391325,1705858239070,-761.41,0.00027397,2]
[312391327,1705858239082,-500.0,0.00027397,2]
[312391329,1705858239092,-500.0,0.00027397,2]
[312391331,1705858239101,-500.0,0.00027397,2]
[312391333,1705858239110,-500.0,0.00027397,2]
[312391335,1705858239119,-500.0,0.00027397,2]
[312391337,1705858239128,-500.0,0.00027397,2]
[312391339,1705858239138,-500.0,0.00027397,2]
[312391341,1705858239147,-500.0,0.00027397,2]
[312391343,1705858239156,-500.0,0.00027397,2]
[312391345,1705858239165,-500.0,0.00027397,2]
[312391348,1705858239175,-158.64848367,0.00027397,2]
[312391350,1705858239184,-500.0,0.00027397,2]
[312391352,1705858239193,-500.0,0.00027397,2]
[312391353,1705858239202,-334.34482967,0.00027397,2]
[312391355,1705858239211,-500.0,0.00027397,2]
[312391357,1705858239220,-500.0,0.00027397,2]
[312391359,1705858239229,-500.0,0.00027397,2]
[312391361,1705858239238,-503.89430269,0.00027397,2]
[312391363,1705858239247,-500.0,0.00027397,2]
[312391365,1705858239256,-635.96694651,0.00027397,2]
[312391367,1705858239266,-500.0,0.00027397,2]
[312391369,1705858239275,-500.0,0.00027397,2]
[312391371,1705858239283,-500.0,0.00027397,2]
[312391373,1705858239292,-500.0,0.00027397,2]
[312391375,1705858239301,-1000.0,0.00027397,2]
[312391377,1705858239310,-500.0,0.00027397,2]
[312391379,1705858239320,-500.0,0.00027397,2]
[312391381,1705858239329,-186.61271067,0.00027397,2]
[312391383,1705858239338,-5706.2,0.00027397,2]
[312391385,1705858239346,-773.46,0.00027397,2]
[312391387,1705858239356,-1662.21,0.00027397,2]
[312391389,1705858239365,-500.0,0.00027397,2]
[312391391,1705858239374,-1149.94,0.00027397,2]
[312391393,1705858239383,-561.2,0.00027397,2]
[312391395,1705858239392,-550.48,0.00027397,2]
[312391397,1705858239400,-500.0,0.00027397,2]
[312391399,1705858239409,-1050.64,0.00027397,2]
[312391401,1705858239418,-500.0,0.00027397,2]
[312391403,1705858239427,-655.83,0.00027397,2]
[312391405,1705858239437,-652.97,0.00027397,2]
[312391407,1705858239446,-500.0,0.00027397,2]
[312391409,1705858239454,-312.25901407,0.00027397,2]
[312391411,1705858239463,-500.0,0.00027397,2]
[312391413,1705858239472,-500.0,0.00027397,2]
[312391415,1705858239481,-1199.42,0.00027397,2]
[312391417,1705858239490,-500.0,0.00027397,2]
[312391419,1705858239499,-630.14,0.00027397,2]
[312391421,1705858239508,-1579.79,0.00027397,2]
[312391423,1705858239517,-500.0,0.00027397,2]
[312391425,1705858239527,-500.0,0.00027397,2]
[312391427,1705858239536,-4248.88,0.00027397,2]
[312391429,1705858239545,-500.0,0.00027397,2]
[312391431,1705858239554,-594.05,0.00027397,2]
[312391433,1705858239564,-500.0,0.00027397,2]
[312391435,1705858239574,-18923.63,0.00027397,2]
[312391437,1705858239583,-707.63,0.00027397,2]
[312391439,1705858239592,-500.0,0.00027397,2]
[312391441,1705858239601,-500.0,0.00027397,2]
[312391443,1705858239610,-500.0,0.00027397,2]
[312391445,1705858239619,-1935.77,0.00027397,2]
[312391447,1705858239628,-500.0,0.00027397,2]
[312391449,1705858239638,-11442.14,0.00027397,2]
[312391451,1705858239647,-702.51,0.00027397,2]
[312391453,1705858239656,-500.0,0.00027397,2]
[312391455,1705858239665,-500.0,0.00027397,2]
[312391457,1705858239674,-301.58285632,0.00027397,2]
[312391459,1705858239683,-1569.24,0.00027397,2]
[312391461,1705858239692,-500.0,0.00027397,2]
[312391463,1705858239701,-837.61,0.00027397,2]
[312391465,1705858239710,-500.0,0.00027397,2]
[312391467,1705858239719,-854.69,0.00027397,2]
[312391469,1705858239728,-500.0,0.00027397,2]
[312391471,1705858239737,-780.23,0.00027397,2]
[312391473,1705858239746,-6161.25,0.00027397,2]
[312391475,1705858239755,-500.0,0.00027397,2]
[312391477,1705858239764,-500.0,0.00027397,2]
[312391479,1705858239773,-1140.25,0.00027397,2]
[312391482,1705858239782,-1390.09,0.00027397,2]
[312391485,1705858239791,-1080.19,0.00027397,2]
[312391488,1705858239800,-500.0,0.00027397,2]
[312391491,1705858239809,-6826.05,0.00027397,2]
[312391493,1705858239818,-500.0,0.00027397,2]
[312391495,1705858239827,-1000.0,0.00027397,2]
[312391497,1705858239836,-961.18,0.00027397,2]
[312391499,1705858239846,-500.0,0.00027397,2]
[312391501,1705858239854,-2063.3,0.00027397,2]
[312391503,1705858239863,-649.37020493,0.00027397,2]
[312391505,1705858239872,-500.0,0.00027397,2]
[312391507,1705858239881,-500.0,0.00027397,2]
[312391509,1705858239890,-243.63065264,0.00027397,2]
[312391511,1705858239899,-1270.31,0.00027397,2]
[312391513,1705858239908,-500.0,0.00027397,2]
[312391515,1705858239917,-500.0,0.00027397,2]
[312391517,1705858239926,-2245.17,0.00027397,2]
[312391519,1705858239934,-2443.03,0.00027397,2]
[312391521,1705858239943,-563.13250472,0.00027397,2]
[312391523,1705858239952,-781.54,0.00027397,2]
[312391525,1705858239961,-500.0,0.00027397,2]
[312391527,1705858239970,-405.41592014,0.00027397,2]
[312391529,1705858239980,-7379.86363499,0.000275,2]
[312391531,1705858239989,-200.0,0.00027562,15]
[312391533,1705858239998,-150.0,0.0002767,2]
[312391535,1705858240006,-500.0,0.00027671,2]
[312391537,1705858240015,-636.46,0.00027671,2]
[312391539,1705858240025,-500.0,0.00027671,2]
[312391540,1705858240036,-500.0,0.00027671,2]
[312391543,1705858240046,-500.0,0.00027671,2]
[312391545,1705858240055,-500.0,0.00027671,2]
[312391546,1705858240064,-500.0,0.00027671,2]
[312391548,1705858240074,-500.0,0.00027671,2]
[312391550,1705858240083,-500.0,0.00027671,2]
[312391552,1705858240092,-713.26,0.00027671,2]
[312391554,1705858240101,-500.0,0.00027671,2]
[312391556,1705858240112,-500.0,0.00027671,2]
[312391559,1705858240122,-500.0,0.00027671,2]
[312391561,1705858240131,-500.0,0.00027671,2]
[312391563,1705858240141,-500.0,0.00027671,2]
[312391564,1705858240150,-768.54,0.00027671,2]
[312391566,1705858240159,-500.0,0.00027671,2]
[312391569,1705858240169,-500.0,0.00027671,2]
[312391570,1705858240178,-500.0,0.00027671,2]
[312391572,1705858240188,-500.0,0.00027671,2]
[312391574,1705858240197,-834.55,0.00027671,2]
[312391576,1705858240207,-500.0,0.00027671,2]
[312391578,1705858240217,-500.0,0.00027671,2]
[312391581,1705858240226,-500.0,0.00027671,2]
[312391582,1705858240235,-500.0,0.00027671,2]
[312391584,1705858240244,-500.0,0.00027671,2]
[312391599,1705858240364,-500.0,0.00027671,2]
[312391601,1705858240374,-500.0,0.00027671,2]
[312391604,1705858240383,-500.0,0.00027671,2]
[312391606,1705858240392,-330.07898599,0.00027671,2]
[312391608,1705858240401,-500.0,0.00027671,2]
[312391610,1705858240410,-500.0,0.00027671,2]
[312391612,1705858240419,-500.0,0.00027671,2]
[312391614,1705858240428,-742.55,0.00027671,2]
[312391616,1705858240437,-500.0,0.00027671,2]
[312391618,1705858240446,-491.83100302,0.00027671,2]
[312391620,1705858240456,-500.0,0.00027671,2]
[312391623,1705858240465,-500.0,0.00027671,2]
[312391626,1705858240474,-1618.09,0.00027671,2]
[312391629,1705858240483,-500.0,0.00027671,2]
[312391632,1705858240493,-500.0,0.00027671,2]
[312391635,1705858240502,-2015.92,0.00027671,2]
[312391638,1705858240510,-761.41,0.00027671,2]
[312391640,1705858240519,-500.0,0.00027671,2]
[312391642,1705858240528,-500.0,0.00027671,2]
[312391644,1705858240537,-500.0,0.00027671,2]
[312391646,1705858240547,-500.0,0.00027671,2]
[312391648,1705858240556,-500.0,0.00027671,2]
[312391650,1705858240565,-500.0,0.00027671,2]
[312391652,1705858240575,-500.0,0.00027671,2]
[312391654,1705858240584,-500.0,0.00027671,2]
[312391656,1705858240593,-500.0,0.00027671,2]
[312391658,1705858240602,-500.0,0.00027671,2]
[312391660,1705858240611,-500.0,0.00027671,2]
[312391662,1705858240620,-500.0,0.00027671,2]
[312391664,1705858240629,-500.0,0.00027671,2]
[312391666,1705858240638,-500.0,0.00027671,2]
[312391668,1705858240648,-500.0,0.00027671,2]
[312391670,1705858240657,-500.0,0.00027671,2]
[312391672,1705858240666,-1000.0,0.00027671,2]
[312391674,1705858240675,-500.0,0.00027671,2]
[312391676,1705858240684,-5706.2,0.00027671,2]
[312391678,1705858240694,-773.46,0.00027671,2]
[312391680,1705858240703,-1662.21,0.00027671,2]
[312391681,1705858240712,-500.0,0.00027671,2]
[312391682,1705858240721,-1149.94,0.00027671,2]
[312391683,1705858240731,-561.2,0.00027671,2]
[312391684,1705858240740,-550.48,0.00027671,2]
[312391685,1705858240749,-500.0,0.00027671,2]
[312391686,1705858240758,-1050.64,0.00027671,2]
[312391687,1705858240768,-500.0,0.00027671,2]
[312391688,1705858240777,-655.83,0.00027671,2]
[312391689,1705858240786,-652.97,0.00027671,2]
[312391690,1705858240796,-500.0,0.00027671,2]
[312391691,1705858240806,-500.0,0.00027671,2]
[312391692,1705858240815,-1199.42,0.00027671,2]
[312391693,1705858240824,-500.0,0.00027671,2]
[312391694,1705858240834,-630.14,0.00027671,2]
[312391695,1705858240843,-1579.79,0.00027671,2]
[312391696,1705858240853,-500.0,0.00027671,2]
[312391697,1705858240862,-500.0,0.00027671,2]
[312391699,1705858240871,-4248.88,0.00027671,2]
[312391701,1705858240880,-500.0,0.00027671,2]
[312391703,1705858240890,-594.05,0.00027671,2]
[312391705,1705858240901,-500.0,0.00027671,2]
[312391707,1705858240910,-18923.63,0.00027671,2]
[312391709,1705858240920,-707.63,0.00027671,2]
[312391711,1705858240929,-500.0,0.00027671,2]
[312391713,1705858240938,-500.0,0.00027671,2]
[312391715,1705858240948,-500.0,0.00027671,2]
[312391717,1705858240957,-1935.77,0.00027671,2]
[312391719,1705858240966,-500.0,0.00027671,2]
[312391721,1705858240975,-11442.14,0.00027671,2]
[312391723,1705858240985,-500.0,0.00027671,2]
[312391725,1705858240994,-1569.24,0.00027671,2]
[312391727,1705858241003,-500.0,0.00027671,2]
[312391729,1705858241012,-837.61,0.00027671,2]
[312391731,1705858241023,-500.0,0.00027671,2]
[312391733,1705858241037,-854.69,0.00027671,2]
[312391735,1705858241049,-500.0,0.00027671,2]
[312391737,1705858241059,-780.23,0.00027671,2]
[312391739,1705858241068,-6161.25,0.00027671,2]
[312391741,1705858241078,-500.0,0.00027671,2]
[312391743,1705858241087,-1140.25,0.00027671,2]
[312391745,1705858241096,-1390.09,0.00027671,2]
[312391746,1705858241106,-1080.19,0.00027671,2]
[312391748,1705858241116,-6826.05,0.00027671,2]
[312391750,1705858241126,-286.77019817,0.00027671,2]
[312391752,1705858241135,-961.18,0.00027671,2]
[312391754,1705858241145,-2063.3,0.00027671,2]
[312391756,1705858241154,-500.0,0.00027671,2]
[312391758,1705858241164,-500.0,0.00027671,2]
[312391760,1705858241174,-1270.31,0.00027671,2]
[312391762,1705858241183,-500.0,0.00027671,2]
[312391764,1705858241193,-500.0,0.00027671,2]
[312391766,1705858241203,-2245.17,0.00027671,2]
[312391768,1705858241213,-2443.03,0.00027671,2]
[312391770,1705858241222,-500.0,0.00027671,2]
[312391772,1705858241232,-781.54,0.00027671,2]
[312391774,1705858241241,-4192.77804006,0.00027799,2]
[312391776,1705858241252,-155.61925481,0.000278,2]
[312391779,1705858241263,-1142.12733566,0.00027898,2]
[312391780,1705858241272,-57614.68228426,0.00027898,5]
[312391783,1705858241281,-3168.59988059,0.00027898,3]
[312391784,1705858241290,-6187.11856174,0.00027898,3]
[312391786,1705858241299,-5000.0,0.00027898,5]
[312391788,1705858241309,-500.0,0.00027898,2]
[312391790,1705858241319,-370.27679728,0.00027898,2]
[312391792,1705858241329,-500.0,0.00027898,2]
[312391795,1705858241338,-500.0,0.00027898,2]
[312391796,1705858241347,-198.95797996,0.00027898,2]
[312391798,1705858241357,-500.0,0.00027898,2]
[312391800,1705858241366,-500.0,0.00027898,2]
[312391802,1705858241375,-500.0,0.00027898,2]
[312391804,1705858241384,-352.28572124,0.00027898,2]
[312391807,1705858241394,-500.0,0.00027898,2]
[312391809,1705858241402,-500.0,0.00027898,2]
[312391811,1705858241411,-500.0,0.00027898,2]
[312391812,1705858241421,-500.0,0.00027898,2]
[312391814,1705858241430,-500.0,0.00027898,2]
[312391816,1705858241439,-500.0,0.00027898,2]
[312391819,1705858241449,-500.0,0.00027898,2]
[312391821,1705858241458,-438.00381186,0.00027898,2]
[312391823,1705858241467,-500.0,0.00027898,2]
[312391825,1705858241475,-500.0,0.00027898,2]
[312391826,1705858241485,-500.0,0.00027898,2]
[312391828,1705858241494,-500.0,0.00027898,2]
[312391830,1705858241503,-500.0,0.00027898,2]
[312391832,1705858241512,-500.0,0.00027898,2]
[312391835,1705858241521,-500.0,0.00027898,2]
[312391836,1705858241530,-500.0,0.00027898,2]
[312391838,1705858241539,-500.0,0.00027898,2]
[312391840,1705858241548,-500.0,0.00027898,2]
[312391843,1705858241558,-500.0,0.00027898,2]
[312391844,1705858241567,-500.0,0.00027898,2]
[312391846,1705858241576,-406.28675728,0.00027898,2]
[312391848,1705858241585,-500.0,0.00027898,2]
[312391850,1705858241594,-500.0,0.00027898,2]
[312391853,1705858241604,-500.0,0.00027898,2]
[312391854,1705858241613,-500.0,0.00027898,2]
[312391857,1705858241622,-500.0,0.00027898,2]
[312391859,1705858241631,-500.0,0.00027898,2]
[312391860,1705858241641,-475.02246378,0.00027898,2]
[312391862,1705858241651,-500.0,0.00027898,2]
[312391864,1705858241660,-500.0,0.00027898,2]
[312391866,1705858241669,-628.43543101,0.00027898,2]
[312391868,1705858241678,-500.0,0.00027898,2]
[312391870,1705858241687,-500.0,0.00027898,2]
[312391872,1705858241697,-500.0,0.00027898,2]
[312391875,1705858241707,-329.451879,0.00027898,2]
[312391876,1705858241716,-329.451879,0.00027898,2]
[312391878,1705858241725,-151.0,0.00027898,2]
[312391881,1705858241735,-155.86598997,0.00027899,2]
[312391882,1705858241744,-546.10323979,0.00027899,2]
[312391884,1705858241754,-500.0,0.00027899,4]
[312391886,1705858241763,-380.98328438,0.00027899,4]
[312391888,1705858241773,-500.0,0.00027899,4]
[312391890,1705858241782,-239.54295528,0.00027899,4]
[312391892,1705858241790,-407.2150678,0.00027899,4]
[312391894,1705858241801,-418.50008445,0.00027899,4]
[312391896,1705858241810,-419.52479236,0.00027899,4]
[312391898,1705858241819,-500.0,0.00027899,4]
[312391901,1705858241829,-435.32957353,0.00027899,4]
[312391903,1705858241838,-500.0,0.00027899,4]
[312391905,1705858241846,-500.0,0.00027899,2]
[312391906,1705858241855,-500.0,0.00027899,2]
[312391908,1705858241865,-1384.86328327,0.00027899,2]
[312391910,1705858241874,-155228.68219644,0.000279,2]
[312391911,1705858241891,-6350.84999837,0.000279,2]
[312391913,1705858241902,-3492.87809,0.000279,2]
[312391923,1705858242063,-1023.3538754,0.00027397,2]
[312391925,1705858242077,-3018.5361246,0.00027397,2]
[312391926,1705858242086,-6567.66,0.00027661,3]
[312391928,1705858242095,-553.11327195,0.00027671,2]
[312392116,1705858243652,-199.0104823,0.00026849,2]
[312392119,1705858243662,-963.09,0.00027397,2]
[312392121,1705858243671,-1299.76256778,0.00027671,2]
[312392414,1705858246350,-404.11479981,0.00027396,2]
[312392415,1705858246359,-278.59080256,0.00027396,2]
[312392416,1705858246368,-873.86173983,0.00027396,2]
[312392417,1705858246378,-510.13938396,0.00027671,2]
[312405495,1705859208085,-154.75239617,0.00024655,4]
[312405496,1705859208105,-158.65109791,0.00024656,2]
[312405497,1705859248080,-751.48650386,0.00024656,2]
[312405498,1705859248101,-154.75239617,0.00024656,4]
[312405499,1705859248124,-840.42928934,0.000258,2]
[312405500,1705859248147,-435.03878779,0.00026315,2]
[312405501,1705859253083,-1512.79521383,0.00026315,2]
[312405542,1705859438560,-154.75239617,0.00024656,4]
[312405544,1705859438570,-24900.0,0.00026312,2]
[312405546,1705859438579,-763.82268996,0.00026315,2]
[312405548,1705859438589,-622.01394105,0.00026721,2]
[312405550,1705859438598,-867.87944548,0.00027,2]
[312405552,1705859438607,-155.61925481,0.00027297,2]
[312405554,1705859438616,-176.96178156,0.00027395,2]
[312405556,1705859438626,-155.86598997,0.00027395,2]
[312405558,1705859438635,-546.10323979,0.00027395,2]
[312405560,1705859438645,-1142.12733566,0.00027395,2]
[312405562,1705859438654,-158.66336584,0.00027395,2]
[312405565,1705859438663,-243.63065264,0.00027395,2]
[312405567,1705859438672,-1242.31465176,0.00027395,2]
[312405568,1705859438682,-303.01578227,0.00027395,2]
[312405570,1705859438692,-323.48104342,0.00027396,2]
[312405572,1705859438701,-268.42738089,0.00027396,2]
[312405574,1705859438711,-500.0,0.00027397,2]
[312405576,1705859438720,-500.0,0.00027397,2]
[312405578,1705859438729,-500.0,0.00027397,2]
[312405580,1705859438739,-383.96915112,0.00027397,2]
[312405582,1705859438748,-500.0,0.00027397,2]
[312405584,1705859438757,-500.0,0.00027397,2]
[312405587,1705859438766,-500.0,0.00027397,2]
[312405589,1705859438776,-500.0,0.00027397,2]
[312405590,1705859438785,-500.0,0.00027397,2]
[312405592,1705859438794,-500.0,0.00027397,2]
[312405594,1705859438803,-279.40130134,0.00027397,2]
[312405596,1705859438813,-500.0,0.00027397,2]
[312405599,1705859438822,-697.96,0.00027397,2]
[312405601,1705859438832,-500.0,0.00027397,2]
[312405603,1705859438841,-500.0,0.00027397,2]
[312405604,1705859438850,-500.0,0.00027397,2]
[312405607,1705859438860,-500.0,0.00027397,2]
[312405609,1705859438869,-500.0,0.00027397,2]
[312405611,1705859438878,-500.0,0.00027397,2]
[312405613,1705859438887,-595.79,0.00027397,2]
[312405614,1705859438896,-500.0,0.00027397,2]
[312405616,1705859438906,-500.0,0.00027397,2]
[312405618,1705859438915,-500.0,0.00027397,2]
[312405620,1705859438925,-500.0,0.00027397,2]
[312405623,1705859438934,-500.0,0.00027397,2]
[312405624,1705859438943,-586.29188756,0.00027397,2]
[312405626,1705859438952,-500.0,0.00027397,2]
[312405629,1705859438962,-500.0,0.00027397,2]
[312405630,1705859438973,-500.0,0.00027397,2]
[312405633,1705859438983,-500.0,0.00027397,2]
[312405635,1705859438992,-500.0,0.00027397,2]
[312405637,1705859439002,-500.0,0.00027397,2]
[312405639,1705859439010,-661.92,0.00027397,2]
[312405641,1705859439019,-500.0,0.00027397,2]
[312405643,1705859439028,-500.0,0.00027397,2]
[312405645,1705859439037,-500.0,0.00027397,2]
[312405647,1705859439047,-500.0,0.00027397,2]